[Event "Czech Championship 2022"]
[Site "Usti nad Labem"]
[Date "2022.05.18"]
[Round "5.4"]
[White "Finek, Vaclav"]
[Black "Babula, Vlastimil"]
[Result "0-1"]
[ECO "A46"]
[WhiteElo "2410"]
[BlackElo "2576"]
[Annotator "TA"]
[PlyCount "148"]
[EventDate "2022.05.12"]
[EventType "swiss"]
[EventCountry "CZE"]
[SourceTitle "playchess.com"]
[Source "ChessBase"]
[SourceQuality "1"]
[TimeControl "40/5400+30:1800+30"]

{[%evp 9,148,-3,1,2,20,15,24,26,18,18,15,13,15,28,20,8,22,16,16,-25,0,0,22,23,24,8,55,0,0,0,0,-25,-22,-16,-23,-20,-9,-39,-35,-42,0,-11,-17,-17,24,20,53,-56,-16,-10,-2,-5,-5,-5,-5,-6,-2,-25,-29,-47,-46,-108,-115,-116,-56,-59,-60,-62,-70,-60,-39,-151,-150,-150,-150,-150,-150,-150,-150,-147,-148,-139,-132,-147,-123,-187,-185,-208,-165,-220,-224,-206,-184,-320,-284,-461,-442,-833,-802,-717,-680,-733,-676,-29958,-5600,-29968,-29970,-29970,-29971,-29972,-29974,-29973,-29975,-29977,-29977,-29978,-29979,-29979,-29980,-29980,-29981,-29981,-29982,-29982,-29983,-29983,-29979,-29986,-29987,-29988,-29989,-29989,-29988,-29990,-29991,-29991,-29992,-29995,-38,-29996,-29997]} 1. d4 {[%emt 0:00:03]} Nf6 {[%emt 0:00:09]} 2. Nf3 {[%emt 0:00:03]} e6 {[%emt 0:00:21]} 3. g3 {[%emt 0:00:06]} b5 {[%emt 0:00:52][%cal Bb7b5,Bb5b4][%mdl 32]} 4. e3 {[%emt 0:00:09]} a6 {[%emt 0:03:51]} 5. a4 {[%emt 0:00:06]} b4 $1 {[%emt 0:01:50]} 6. Bg2 {[%emt 0:00:11] A46: 1 d4 Nf6 2 Nf3 e6: Torre, London and Colle Systems.} d5 {[%emt 0:00:52] [#]} 7. O-O $146 {[%emt 0:00:19]} ({Predecessor:} 7. c4 c5 8. O-O Bb7 9. Nbd2 Nbd7 10. b3 Be7 11. Bb2 O-O 12. Rc1 Rc8 13. Ne5 {1-0 (56) Berkes,F (2661)-Berescu,A (2450) Sovata 2018}) 7... Nbd7 {[%emt 0:02:23]} 8. Nbd2 {[%emt 0:00:41] White has an edge.} Bb7 {[%emt 0:02:49]} 9. c4 {[%emt 0:00:17]} bxc3 {[%emt 0:19:35]} 10. bxc3 {[%emt 0:00:08][%cal Bb2c3,Bc3c4][%mdl 32]} Be7 {[%emt 0:00:35]} 11. c4 {[%emt 0:15:41]} c5 {[%emt 0:01:24]} 12. Bb2 {[%emt 0:06:40]} O-O {[%emt 0:01:59]} 13. Qe2 {[%emt 0:02:41]} Rb8 {[%emt 0:03:51]} 14. Rab1 {[%emt 0:06:16]} dxc4 {[%emt 0:07:25]} 15. Nxc4 {[%emt 0:04:33]} Be4 {[%emt 0:06:48]} 16. Rbc1 {[%emt 0:01:46]} Rb4 {[%emt 0:06:05]} 17. Rfd1 {[%emt 0:03:34]} Qa8 {[%emt 0:00:59]} (17... cxd4 $11 18. Nxd4 Bxg2 19. Kxg2 Qa8+ 20. Nf3 h6) 18. dxc5 {[%emt 0:17:14]} (18. Ba3 $1 $14) 18... Nxc5 $11 {[%emt 0:02:59][%cal Bd7c5,Bc5b3,Bb3c1][%mdl 32]} 19. Ba3 {[%emt 0:02:08]} Nb3 {[%emt 0:12:11]} (19... Rxa4 $2 20. Nb6 Rxa3 21. Nxa8 Bxa8 22. Ne5 $18) 20. Bxb4 {[%emt 0:22:39]} (20. Rb1 $5 {[%cal Ra3b4]} Rxc4 21. Qxc4 $14 (21. Bxe7 Rc2 $11)) 20... Nxc1 {[%emt 0:00:29]} 21. Rxc1 {[%emt 0:00:03]} Bxb4 {[%emt 0:00:09]} 22. Nce5 {[%emt 0:00:31]} h6 {[%emt 0:04:16]} 23. Qf1 {[%emt 0:02:24]} Ba3 {[%emt 0:04:44] A strong pair of Bishops.} 24. Rd1 {[%emt 0:00:20]} Nd5 {[%emt 0:06:36]} 25. Nd4 {[%emt 0:05:57]} Bxg2 {[%emt 0:00:42]} 26. Qxg2 {[%emt 0:00:16]} Rc8 {[%emt 0:00:50]} 27. Qf3 {[%emt 0:00:55]} Qb7 {[%emt 0:00:54]} 28. h4 {[%emt 0:03:44]} (28. e4 $1 $14 Nc3 29. Rd3) 28... Qc7 {[%emt 0:02:37]} (28... Bd6 $5 {[%cal Rd6e5]} 29. Nd3 Rc4 $15) 29. Nec6 {[%emt 0:04:32]} Nc3 {[%emt 0:05:08]} 30. Rd3 {[%emt 0:00:26]} Bb2 $36 {[%emt 0:00:17][%mdl 2048] Black is pushing.} 31. Rd2 {[%emt 0:00:48]} Nxa4 {[%emt 0:00:54]} 32. Rc2 {[%emt 0:00:05]} Re8 {[%emt 0:01:04] Prevents Ne7+.} 33. Qe4 {[%emt 0:01:01] Ne2 is the strong threat.} Bxd4 {[%emt 0:00:34]} 34. Qxd4 {[%emt 0:00:35]} Nb6 {[%emt 0:00:28][%cal Oa6a5]} 35. Ne7+ {[%emt 0:00:21]} Qxe7 $17 {[%emt 0:00:11]} 36. Qxb6 {[%emt 0:00:04][%mdl 4096] Endgame KQR-KQR} Ra8 {[%emt 0:00:36]} (36... Qd8 $1 $17 {[%cal Rd8b6]} 37. Qxd8 Rxd8) 37. Rc7 $15 {[%emt 0:00:37]} Qd8 {[%emt 0:00:52]} 38. Qc6 {[%emt 0:00:49][%cal Oc6f3]} a5 {[%emt 0:00:30]} 39. Rd7 {[%emt 0:00:37] Prevents Qd1+.} Qe8 {[%emt 0:00:17] Strongly threatening ...a4.} (39... Qc8 $5 {[%cal Rc8c6]} 40. Rc7 Qb8 $15) 40. Qa4 {[%emt 0:00:29] [#] Black continues to play with concentration.} (40. Qf3 $15) 40... Ra7 $3 $17 {[%emt 0:00:46][%mdl 512]} 41. Rd4 {[%emt 0:30:26]} Qxa4 {[%emt 0:30:13]} 42. Rxa4 {[%emt 0:00:05] KR-KR} Kf8 {[%emt 0:00:00]} 43. Kf1 {[%emt 0:00:00]} Ke7 {[%emt 0:00:00]} 44. Ke2 {[%emt 0:00:00]} Kd6 {[%emt 0:00:00]} 45. Kd3 {[%emt 0:00:00]} Kc5 {[%emt 0:00:00]} 46. Kc3 {[%emt 0:00:00]} Kb5 {[%emt 0:00:00]} 47. Kb3 {[%emt 0:00:00]} (47. Rd4 $17 {might work better.}) 47... Rd7 $19 {[%emt 0:00:00]} 48. Ra2 {[%emt 0:00:00]} e5 {[%emt 0:00:00][%cal Be6e5,Be5e4][%mdl 32]} 49. Rb2 {[%emt 0:00:00]} (49. h5 {was called for.}) 49... a4+ {[%emt 0:00:00]} 50. Kc3+ {[%emt 0:00:00]} Kc5 {[%emt 0:00:00] And now ...a3 would win.} 51. Ra2 {[%emt 0:00:00] [#]} (51. Rb8 $142) 51... Ra7 $1 {[%emt 0:00:00]} 52. Ra1 $2 {[%emt 0:00:00]} (52. Ra3 {was necessary.}) 52... a3 {[%emt 0:00:00]} 53. Ra2 {[%emt 0:00:00]} (53. Kb3 $142 Kd5 54. Ka2) 53... e4 {[%emt 0:00:00]} 54. Kb3 {[%emt 0:00:00]} Kb5 {[%emt 0:00:00]} 55. g4 {[%emt 0:00:00]} g5 {[%emt 0:00:00]} 56. hxg5 {[%emt 0:00:00]} hxg5 {[%emt 0:00:00] ( -> ...Ra8)} 57. Ra1 {[%emt 0:00:12]} a2 {[%emt 0:00:27]} 58. Kc3 {[%emt 0:00:05]} f6 {[%emt 0:00:46]} 59. Kd4 {[%emt 0:01:00]} Kb4 {[%emt 0:00:29]} 60. Kxe4 {[%emt 0:00:10] [#]} Ra5 $1 {[%emt 0:00:09]} 61. f4 {[%emt 0:01:52]} Kb3 {[%emt 0:00:08]} 62. Rf1 {[%emt 0:02:04]} a1=Q {[%emt 0:02:37]} 63. Rxa1 {[%emt 0:00:05]} Rxa1 {[%emt 0:00:06] KR-K3P} 64. Kf5 {[%emt 0:01:00]} Rf1 {[%emt 0:01:29]} 65. Kxf6 {[%emt 0:00:37]} gxf4 {[%emt 0:00:20]} 66. exf4 {[%emt 0:00:09]} Rxf4+ {[%emt 0:00:04] KR-KP} 67. Kg5 {[%emt 0:00:07]} Rf1 {[%emt 0:00:51]} 68. Kh6 {[%emt 0:00:17]} Kc4 {[%emt 0:00:24]} 69. g5 {[%emt 0:00:28]} Kd5 {[%emt 0:00:03]} 70. g6 {[%emt 0:00:21]} Ke6 {[%emt 0:00:04]} 71. Kh7 {[%emt 0:00:45]} Rg1 {[%emt 0:00:39]} 72. g7 {[%emt 0:00:40]} Kf7 {[%emt 0:00:08][%cal Rg1h1]} 73. g8=N {[%emt 0:00:09]} Rh1+ {[%emt 0:01:06]} 74. Nh6+ {[%emt 0:00:05]} Kf6 {[%emt 0:00:05] Weighted Error Value: White=0.56/Black=0.07 (flawless)} 0-1

[Event "Czech Championship 2022"]
[Site "Usti nad Labem"]
[Date "2022.05.18"]
[Round "5.5"]
[White "Stocek, Jiri"]
[Black "Rubes, Jan"]
[Result "1-0"]
[ECO "D30"]
[WhiteElo "2533"]
[BlackElo "2386"]
[Annotator "TA"]
[PlyCount "131"]
[EventDate "2022.05.12"]
[EventType "swiss"]
[EventCountry "CZE"]
[SourceTitle "playchess.com"]
[Source "ChessBase"]
[SourceQuality "1"]
[TimeControl "40/5400+30:1800+30"]

{[%evp 9,131,25,20,11,11,10,12,-27,6,0,31,30,52,57,70,59,69,53,61,66,55,48,57,52,47,47,47,53,102,109,117,91,98,86,100,82,80,74,77,62,68,68,95,96,98,79,93,77,79,79,80,79,76,10,99,98,99,97,95,97,111,79,101,101,102,91,91,72,88,0,0,0,95,73,80,80,80,81,81,86,87,84,86,77,151,135,135,134,134,134,134,135,233,233,226,220,153,8,8,8,8,8,8,8,8,8,77,77,79,87,85,85,100,107,107,85,29980,29981,29981,29978,29978,29979,29978,29979]} 1. d4 {[%emt 0:07:17]} Nf6 {[%emt 0:00:09]} 2. c4 {[%emt 0:00:10]} e6 {[%emt 0:00:06]} 3. Nf3 {[%emt 0:01:42]} d5 {[%emt 0:03:49]} 4. Bg5 {[%emt 0:02:55]} h6 {[%emt 0:05:46]} 5. Bxf6 {[%emt 0:04:56]} Qxf6 {[%emt 0:00:11]} 6. Qb3 {[%emt 0:00:12] Inhibits Bb4+. D30: Queen's Gambit Declined: Systems without Nc3.} dxc4 {[%emt 0:21:05]} 7. Qxc4 {[%emt 0:00:56]} Nc6 {[%emt 0:04:11]} 8. e4 {[%emt 0:18:11][%cal Be2e4,Be4e5][%mdl 32] The position is equal.} Bb4+ {[%emt 0:08:01]} 9. Nc3 {[%emt 0:00:26]} O-O {[%emt 0:01:31] [#]} (9... Qg6 $5 {[%cal Rg6e4]}) 10. Bd3 $146 {[%emt 0:10:32]} ({Predecessor:} 10. Be2 Bxc3+ 11. bxc3 Qg6 12. e5 Qxg2 13. Rg1 Qh3 14. Rg3 Qf5 15. O-O-O Rd8 16. Rdg1 {½-½ (36) Kaczorowski,P (2030)-Wagner,B (1890) ICCF email 1997}) 10... Rd8 {[%emt 0:07:31][%cal Rd8d4]} 11. e5 $1 {[%emt 0:06:11]} Qf4 {[%emt 0:07:18][%cal Rc6d4]} 12. Rd1 $1 {[%emt 0:01:37]} Bd7 {[%emt 0:02:00][%cal Ob7b5]} ({Not} 12... Nxd4 13. Nxd4 Rxd4 14. Qxd4 $3 {[%mdl 512]} (14. Bh7+ Kxh7 15. Qxd4 Qxd4 $16) 14... Qxd4 15. Bh7+ $1 Kxh7 16. Rxd4 $16) 13. Bb1 {[%emt 0:04:27]} h5 {[%emt 0:01:34]} 14. O-O {[%emt 0:04:55]} Bxc3 {[%emt 0:00:49]} 15. Qxc3 {[%emt 0:01:48]} Ne7 $1 {[%emt 0:09:41]} 16. Qxc7 {[%emt 0:00:46]} Nd5 {[%emt 0:00:08]} 17. Qc2 {[%emt 0:03:43]} g6 {[%emt 0:02:18]} 18. Rfe1 {[%emt 0:05:13]} Rac8 {[%emt 0:00:49]} (18... Bc6 $1 $14) 19. Qb3 $16 {[%emt 0:04:38]} Nb6 {[%emt 0:01:21]} 20. Qe3 {[%emt 0:04:59]} Nd5 {[%emt 0:00:29]} 21. Qa3 {[%emt 0:01:44]} Bc6 {[%emt 0:01:04]} 22. g3 {[%emt 0:01:16]} Qh6 {[%emt 0:01:08]} (22... Qg4 $2 23. Re4 $18) 23. h4 {[%emt 0:00:57]} Qf8 {[%emt 0:01:51]} 24. Qxf8+ {[%emt 0:01:23]} (24. Qxa7 {looks sharper.} Nc7 25. Ng5 Qb4 26. Be4) 24... Kxf8 {[%emt 0:00:06]} 25. Ng5 {[%emt 0:00:31][%cal Bf3g5,Bg5h7,Bh7f6][%mdl 32]} Ne7 {[%emt 0:00:31]} 26. Rd2 {[%emt 0:02:21]} Rd7 {[%emt 0:00:55]} 27. Red1 {[%emt 0:01:18]} Rcd8 {[%emt 0:03:59]} 28. Nh7+ {[%emt 0:00:21]} Kg7 {[%emt 0:00:12]} 29. Nf6 {[%emt 0:00:05]} Rc7 {[%emt 0:00:05]} 30. Rc1 {[%emt 0:02:45][%cal Of2f3]} Rcc8 {[%emt 0:00:13]} 31. Be4 {[%emt 0:00:31] White is much more active.} (31. f4 $16) 31... Bxe4 {[%emt 0:00:16]} (31... Ng8 $1 $11) 32. Rxc8 {[%emt 0:00:05]} Rxc8 {[%emt 0:00:50]} 33. Nxe4 $11 {[%emt 0:00:05][%mdl 4096] Endgame KRN-KRN} Rc1+ {[%emt 0:01:45]} 34. Kg2 {[%emt 0:00:05]} Nd5 {[%emt 0:04:33]} 35. Kf3 {[%emt 0:00:14]} b6 {[%emt 0:00:33][%cal Bb7b6,Bb6b5][%mdl 32]} 36. a3 {[%emt 0:00:39]} a5 {[%emt 0:00:29]} 37. Ke2 {[%emt 0:00:21]} b5 {[%emt 0:00:23]} 38. Nc5 {[%emt 0:01:23]} a4 {[%emt 0:03:15] Against Nb3} 39. Rd1 {[%emt 0:03:35]} Rc2+ {[%emt 0:00:15]} 40. Rd2 $1 {[%emt 0:00:05]} Rc1 {[%emt 0:00:05]} 41. Kd3 {[%emt 0:13:36]} b4 {[%emt 0:03:30]} 42. axb4 {[%emt 0:03:43]} Nxb4+ {[%emt 0:00:09]} 43. Ke2 {[%emt 0:00:34]} Ra1 {[%emt 0:00:13]} 44. Ne4 {[%emt 0:00:41]} a3 {[%emt 0:01:41]} 45. bxa3 {[%emt 0:00:05]} Rxa3 {[%emt 0:00:04]} 46. Nd6 {[%emt 0:02:08]} Ra2 {[%emt 0:12:02]} ({Black should play} 46... Nc6) 47. Rxa2 {[%emt 0:03:22]} Nxa2 $16 {[%emt 0:00:06] KN-KN} 48. Kd3 {[%emt 0:00:23] aiming for Kc4.} Nb4+ {[%emt 0:00:20]} 49. Kc4 {[%emt 0:00:50]} Nd5 {[%emt 0:00:45]} 50. Ne8+ {[%emt 0:01:47]} Kh6 {[%emt 0:00:48]} (50... Kf8 $16 {might work better.} 51. Nf6 Ne7) 51. Nf6 $18 {[%emt 0:03:31]} Ne7 {[%emt 0:01:41]} 52. d5 {[%emt 0:01:29]} exd5+ {[%emt 0:00:16]} 53. Kc5 {[%emt 0:01:15]} (53. Nxd5 $16 Nc6 54. f4) 53... g5 $11 {[%emt 0:01:09]} 54. hxg5+ {[%emt 0:01:35]} Kxg5 {[%emt 0:00:08]} 55. Kd6 {[%emt 0:01:09]} Ng6 {[%emt 0:02:34]} 56. Kxd5 {[%emt 0:02:41] Ke4 is the strong threat.} h4 {[%emt 0:00:43]} 57. gxh4+ {[%emt 0:00:07]} Nxh4 {[%emt 0:00:19] [#]} (57... Kf5 $11 {remains equal.}) 58. Ke4 $1 $16 {[%emt 0:00:06]} Kg6 {[%emt 0:00:42]} 59. Nd5 {[%emt 0:00:25]} Nf5 {[%emt 0:01:27]} 60. Kf4 {[%emt 0:02:08]} Ng7 {[%emt 0:05:10]} 61. Kg4 {[%emt 0:00:37]} Ne8 {[%emt 0:05:36]} 62. f4 {[%emt 0:00:34][%cal Bf2f4,Bf4f5,Bf5f6][%mdl 32]} Ng7 $2 {[%emt 0:02:44][%mdl 8192] A mistake that costs the game.} (62... f5+ $16 63. Kh4 Ng7) 63. f5+ $1 {[%emt 0:00:22] White mates.} Kh7 {[%emt 0:00:04]} 64. Kg5 {[%emt 0:00:41]} Kg8 {[%emt 0:00:14]} 65. Nc7 {[%emt 0:00:17]} Kf8 {[%emt 0:00:29]} 66. f6 {[%emt 0:00:23] Weighted Error Value: White=0.12 (very precise) /Black=0.23 (precise)} 1-0

[Event "Czech Championship 2022"]
[Site "Usti nad Labem"]
[Date "2022.05.18"]
[Round "5.6"]
[White "Mica, Marek"]
[Black "Krejci, Jan"]
[Result "1/2-1/2"]
[ECO "D02"]
[WhiteElo "2343"]
[BlackElo "2520"]
[Annotator "TA"]
[PlyCount "79"]
[EventDate "2022.05.12"]
[EventType "swiss"]
[EventCountry "CZE"]
[SourceTitle "playchess.com"]
[Source "ChessBase"]
[SourceQuality "1"]
[TimeControl "40/5400+30:1800+30"]

{[%evp 9,79,18,19,25,9,21,27,-4,-4,0,0,-2,14,9,3,9,2,9,5,5,9,8,8,1,1,6,6,0,0,0,0,0,0,0,0,0,0,0,0,-4,0,-10,20,23,21,22,27,21,21,26,26,26,73,68,81,80,81,19,81,0,77,0,87,79,222,231,205,220,217,93,81,42]} 1. Nf3 {[%emt 0:00:06]} d5 {[%emt 0:00:05]} 2. g3 {[%emt 0:00:14]} Nc6 {[%emt 0:00:05]} 3. d4 {[%emt 0:00:37]} Bf5 {[%emt 0:00:05]} 4. Bg2 {[%emt 0:02:39]} Nb4 {[%emt 0:00:06]} 5. Na3 {[%emt 0:00:15][%cal Bb1a3,Ba3c2,Bc2e3][%mdl 32]} e6 {[%emt 0:00:03]} 6. c3 {[%emt 0:01:12] D02: 1 d4 d5 2 Nf3 sidelines, including 2...Nf6 3 g3 and 2...Nf6 3 Bf4.} Nc6 {[%emt 0:00:18]} 7. Nc2 {[%emt 0:01:12]} Be7 {[%emt 0:00:52]} 8. b4 {[%emt 0:11:37] [#] White has an edge.} Nf6 $146 {[%emt 0:02:02]} ({Predecessor:} 8... a6 9. O-O Nf6 10. a4 Ne4 11. Bb2 O-O 12. Ne3 Bg6 13. Ne1 Bd6 14. Nd3 h5 {1-0 (60) Geyer,B (2180)-Prueske,W (2006) Rottach Egern 2021}) 9. O-O {[%emt 0:01:52]} Ne4 {[%emt 0:01:13]} 10. Bb2 {[%emt 0:02:07]} O-O {[%emt 0:03:57]} 11. Ne3 {[%emt 0:03:40]} Bg6 {[%emt 0:01:00]} 12. b5 {[%emt 0:07:15]} Na5 {[%emt 0:06:01]} 13. Ne5 {[%emt 0:00:35]} a6 {[%emt 0:07:40]} 14. Nxg6 {[%emt 0:11:16]} hxg6 {[%emt 0:00:06]} 15. Bxe4 {[%emt 0:00:40]} dxe4 {[%emt 0:00:02]} 16. a4 {[%emt 0:00:16][%cal Ba2a4,Ba4b5][%mdl 32]} Bg5 {[%emt 0:14:25] ...Bxe3 is the strong threat.} 17. Ba3 {[%emt 0:04:53]} Re8 {[%emt 0:00:02] Threatens to win with ...Bxe3.} 18. Bb4 {[%emt 0:00:42]} Bxe3 {[%emt 0:00:10]} 19. Bxa5 {[%emt 0:00:47]} ({Avoid the trap} 19. fxe3 $2 Nc4 20. bxa6 Rxa6 $19) 19... Bg5 {[%emt 0:00:05]} 20. e3 {[%emt 0:02:38]} axb5 {[%emt 0:06:42]} 21. axb5 {[%emt 0:01:57]} b6 {[%emt 0:00:03]} 22. Bb4 {[%emt 0:00:09]} Rxa1 {[%emt 0:00:05]} 23. Qxa1 {[%emt 0:00:16]} Qd5 {[%emt 0:00:02]} 24. Qa7 {[%emt 0:03:23]} Rc8 {[%emt 0:00:18]} 25. Ra1 {[%emt 0:05:32]} Qxb5 {[%emt 0:05:29]} 26. Qb7 {[%emt 0:01:29][%csl LRc8,LRe4]} Qe8 {[%emt 0:00:08]} 27. h4 {[%emt 0:07:47]} Bf6 {[%emt 0:00:50]} ({Much less strong is} 27... c5 28. hxg5 cxb4 29. cxb4 $16) 28. Ra7 {[%emt 0:03:46]} c5 {[%emt 0:13:41] And now ...Rb8 would win.} 29. Ba3 {[%emt 0:04:01]} Rb8 {[%emt 0:02:36]} 30. Qxe4 {[%emt 0:00:10]} cxd4 {[%emt 0:03:53]} (30... Qb5 $11) 31. cxd4 $16 {[%emt 0:04:52]} b5 {[%emt 0:00:50]} 32. Bd6 {[%emt 0:00:26]} Rd8 {[%emt 0:00:08]} 33. Bc5 {[%emt 0:02:41]} (33. Ra6 $1 $16) 33... Rb8 {[%emt 0:10:01]} (33... Rc8 $11) 34. Bd6 {[%emt 0:00:12]} Rd8 {[%emt 0:00:01]} 35. Bc5 {[%emt 0:00:06]} Rb8 {[%emt 0:00:03]} 36. Bb4 {[%emt 0:09:27]} Qc8 {[%emt 0:03:45]} (36... g5 $16) 37. Bd6 $18 {[%emt 0:02:00]} Qc1+ {[%emt 0:00:06]} 38. Kg2 $1 {[%emt 0:00:10] Active counter play!} Rd8 {[%emt 0:01:19] [#]} 39. Bc5 {[%emt 0:00:52]} (39. Qb7 $1 $18 {[%cal Rb7f7] is the precise move to win.} Kh7 40. Bc5) 39... Qc4 $16 {[%emt 0:01:48][%cal Oe6e5]} 40. Qb7 {[%emt 0:05:37] Weighted Error Value: White=0.15 (very precise) /Black=0.11 (very precise)} 1/2-1/2

[Event "Czech Championship 2022"]
[Site "Usti nad Labem"]
[Date "2022.05.18"]
[Round "5.7"]
[White "Cernousek, Lukas"]
[Black "Sorm, Daniel"]
[Result "1-0"]
[ECO "A28"]
[WhiteElo "2440"]
[BlackElo "2306"]
[Annotator "TA"]
[PlyCount "27"]
[EventDate "2022.05.12"]
[EventType "swiss"]
[EventCountry "CZE"]
[SourceTitle "playchess.com"]
[Source "ChessBase"]
[SourceQuality "1"]
[TimeControl "40/5400+30:1800+30"]

{[%evp 14,27,17,19,31,16,49,51,79,71,313,326,338,339,332,321]} 1. c4 {[%emt 0:00:03]} e5 {[%emt 0:03:35]} 2. Nc3 {[%emt 0:00:16]} Nf6 {[%emt 0:00:40]} 3. Nf3 {[%emt 0:00:09]} Nc6 {[%emt 0:00:07]} 4. e3 {[%emt 0:00:06]} d5 {[%emt 0:05:07]} 5. cxd5 {[%emt 0:00:07]} Nxd5 {[%emt 0:00:09]} 6. Bb5 {[%emt 0:00:06]} Nxc3 {[%emt 0:00:22]} 7. bxc3 {[%emt 0:00:03]} Bd6 {[%emt 0:04:57]} 8. d4 {[%emt 0:00:03]} Bd7 {[%emt 0:01:54] is currently scoring better than 8...exd4. A28: English Opening: Four Knights Variation.} 9. Rb1 {[%emt 0:17:52]} Rb8 {[%emt 0:21:52]} 10. O-O {[%emt 0:10:26] [#]} Qf6 $146 {[%emt 0:16:46]} ({Predecessor:} 10... a6 11. Bxc6 Bxc6 12. dxe5 Bxf3 13. Qxf3 Bxe5 14. Rxb7 O-O 15. Ba3 Bd6 16. Rxb8 Qxb8 17. Bxd6 cxd6 {½-½ (34) Tsakiris,H (2265)-Can,I (1923) Skopje 2015}) 11. e4 {[%emt 0:19:26] [#] Hoping for d5.} O-O $2 {[%emt 0:11:27]} (11... Qe7 $16) 12. d5 $18 {[%emt 0:12:08] White has a decisive advantage.} Bg4 {[%emt 0:00:12]} 13. dxc6 {[%emt 0:01:09]} bxc6 {[%emt 0:00:06]} 14. Bd3 {[%emt 0:35:36] Black got outplayed after the opening.  Weighted Error Value: White=0.04 (flawless) /Black=0.93} 1-0

[Event "Czech Championship 2022"]
[Site "Usti nad Labem"]
[Date "2022.05.18"]
[Round "5.8"]
[White "Buchcar, Tomas"]
[Black "Rasik, Vitezslav"]
[Result "1/2-1/2"]
[ECO "B07"]
[WhiteElo "2183"]
[BlackElo "2433"]
[Annotator "TA"]
[PlyCount "86"]
[EventDate "2022.05.12"]
[EventType "swiss"]
[EventCountry "CZE"]
[SourceTitle "playchess.com"]
[Source "ChessBase"]
[SourceQuality "1"]
[TimeControl "40/5400+30:1800+30"]

{[%evp 17,86,0,27,28,42,38,45,48,54,34,39,29,58,24,70,54,61,59,69,61,66,52,68,46,51,14,9,10,12,-16,0,-50,-45,-55,-54,-155,-45,-45,-45,-36,0,0,0,0,0,0,0,-16,0,0,0,0,0,0,0,0,0,0,0,0,0,0,66,79,77,61,60,71,75,0,0]} 1. e4 {[%emt 0:26:14]} d6 {[%emt 0:00:15]} 2. d4 {[%emt 0:00:05]} g6 {[%emt 0:00:17]} 3. Nc3 {[%emt 0:00:04]} Bg7 {[%emt 0:00:23]} 4. Be3 {[%emt 0:00:09]} c6 {[%emt 0:04:12]} 5. Qd2 {[%emt 0:00:05]} b5 {[%emt 0:00:40]} 6. Nf3 {[%emt 0:00:14]} Nd7 {[%emt 0:08:17]} 7. Bd3 {[%emt 0:00:47]} Qc7 {[%emt 0:01:44]} 8. O-O {[%emt 0:02:51]} Ngf6 {[%emt 0:03:49]} 9. h3 {[%emt 0:00:54]} O-O {[%emt 0:00:59]} 10. Ne2 {[%emt 0:00:06] B07: Pirc Defence: Miscellaneous Systems.} c5 {[%emt 0:12:30] [#] ...c4 is the strong threat.} 11. c3 $1 {[%emt 0:02:12]} ({Reject} 11. Bxb5 Nxe4 12. Qd3 Bb7 $15) 11... Bb7 {[%emt 0:06:37]} 12. Ng3 {[%emt 0:01:43] White is slightly better.} e5 {[%emt 0:11:42]} 13. d5 {[%emt 0:18:21]} c4 {[%emt 0:00:51]} 14. Bc2 {[%emt 0:00:03]} Nc5 {[%emt 0:01:07]} 15. Bh6 {[%emt 0:01:44] [#]} (15. b4 $5 {[%cal Rb4c5]} cxb3 16. axb3 $14) 15... Ne8 $146 {[%emt 0:02:54]} (15... a5 $11) ({Predecessor:} 15... Bc8 16. b4 cxb3 17. axb3 Bd7 18. Rfc1 a5 19. b4 axb4 20. Rxa8 Rxa8 21. cxb4 Bxh6 22. Qxh6 {0-1 (86) Lorenzo de la Riva,L (2449)-Kjartansson,G (2434) Badalona 2013}) 16. Bxg7 {[%emt 0:05:16]} Nxg7 {[%emt 0:01:34]} 17. Qh6 {[%emt 0:05:40]} f6 {[%emt 0:02:59] Against Ng5} 18. b4 {[%emt 0:09:31]} cxb3 {[%emt 0:03:22]} 19. axb3 {[%emt 0:00:13]} Nd7 {[%emt 0:03:48][%cal Bc5d7,Bd7b6,Bb6c4][%mdl 32]} 20. Qd2 {[%emt 0:06:57] White is more active.} (20. Rfc1 {keeps more tension.} a5 21. h4 b4 22. h5) 20... a6 {[%emt 0:01:55]} 21. b4 {[%emt 0:04:15]} Rac8 {[%emt 0:00:59]} 22. Ra3 {[%emt 0:00:13]} Nb6 {[%emt 0:03:08] Strongly threatening ...Nc4.} 23. Qd1 {[%emt 0:00:16]} Nc4 {[%emt 0:02:41]} 24. Rb3 {[%emt 0:00:39]} (24. Ra2 $11) 24... Qe7 $15 {[%emt 0:01:20]} 25. Nd2 {[%emt 0:01:02]} f5 {[%emt 0:04:36]} 26. Nxc4 {[%emt 0:00:58]} ({White should try} 26. Re1 $15) 26... Rxc4 {[%emt 0:01:15]} (26... bxc4 $17 27. Ra3 f4) 27. Bd3 {[%emt 0:01:58]} Rc7 {[%emt 0:00:40] aiming for ...f4.} 28. Re1 {[%emt 0:05:53]} fxe4 {[%emt 0:06:19]} (28... Qh4 $5 {[%cal Rf5f4]}) 29. Bxe4 {[%emt 0:00:31]} Ne8 {[%emt 0:01:53][%cal Bg7e8,Be8f6,Bf6d7,Bd7f6,Bf6d5,Bd5f4][%mdl 32]} 30. Qd2 {[%emt 0:01:14]} Qf7 {[%emt 0:00:52]} 31. Re3 {[%emt 0:01:48]} Nf6 {[%emt 0:01:06]} 32. Rd3 {[%emt 0:00:12]} Kh8 {[%emt 0:02:28]} 33. Rb1 {[%emt 0:00:19]} Rc4 {[%emt 0:00:29]} 34. Re1 {[%emt 0:00:07]} Nd7 {[%emt 0:01:14]} 35. Ree3 {[%emt 0:00:18]} Qe7 {[%emt 0:01:19]} 36. Re2 {[%emt 0:01:17]} Qh4 {[%emt 0:00:25]} 37. Rf3 {[%emt 0:00:59]} Rxf3 {[%emt 0:03:14]} 38. Bxf3 {[%emt 0:00:19]} Nf6 {[%emt 0:00:44] Against Re4} 39. Qe3 {[%emt 0:03:05] Threatens to win with Qb6.} Bxd5 {[%emt 0:03:02]} ({Don't play} 39... Nxd5 40. Bxd5 Bxd5 41. Qd3 $16) ({Black should play} 39... Rc7 $11) 40. Bxd5 $14 {[%emt 0:01:15]} Nxd5 {[%emt 0:00:09]} 41. Qf3 {[%emt 0:01:15][%cal Rf3f8]} Nf4 $1 {[%emt 0:07:34]} 42. Qa8+ {[%emt 0:00:29][%mdl 1024] White has compensation.} Kg7 {[%emt 0:00:10] [#]} 43. Re3 {[%emt 0:00:36]} (43. Ra2 $1 $16 Rc7 44. Rxa6) 43... Qe7 {[%emt 0:05:38] Prevents Qb7.  Weighted Error Value: White=0.12 (very precise) /Black=0.16 (very precise)} 1/2-1/2